bitfinex-derivatives/quotes_ETHF0:USTF0_20250107
["timestamp","ask_amount","ask_price","bid_price","bid_amount"]
[1736264069826,0.28418,3520.1,3520.0,43.3305]
[1736264070020,0.2272,3520.5,3520.0,43.3305]
[1736264070320,0.2272,3520.5,3520.4,0.28415]
[1736264070926,0.2272,3520.5,3520.4,41.08415]
[1736264072024,0.28409,3521.2,3521.0,0.2841]
[1736264072430,3.2078,3521.7,3521.0,0.2841]
[1736264072633,3.2078,3521.7,3520.5,2.6527]
[1736264072820,0.28408,3521.4,3520.7,0.71032]
[1736264073022,3.2078,3521.7,3520.5,5.8605]
[1736264073320,0.28411,3521.0,3520.5,5.8605]
[1736264073519,0.1009,3521.6,3520.5,2.6527]
[1736264073730,0.28413,3520.7,3520.5,2.93684]
[1736264073925,3.2078,3520.9,3519.7,4.42897322]
[1736264074128,2.283,3521.3,3519.7,2.53927322]
[1736264074129,0.2842,3519.8,3519.7,2.53927322]
[1736264074425,3.2078,3520.1,3518.4,5.64481]
[1736264074426,0.28422,3519.6,3519.5,8.85794645]
[1736264074629,3.49202,3519.6,3519.5,8.85794645]
[1736264075021,3.49202,3519.6,3515.7,1.21761859]
[1736264075022,0.499,3518.2,3517.1,6.87131968]
[1736264075222,0.499,3518.2,3515.1,1.48408286]
[1736264075223,6.6178906,3517.2,3516.5,15.59753619]
[1736264075528,0.28453,3515.7,3515.6,13.50040887]
[1736264075724,9.1854206,3515.7,3515.6,2.20086752]
[1736264076025,9.1854206,3515.7,3513.5,3.2078]
[1736264076026,0.28463,3514.5,3514.4,13.36312857]
[1736264076233,3.6947206,3514.5,3514.4,12.03777857]
[1736264076427,8.6947206,3514.5,3514.4,12.03297857]
[1736264076624,11.9025206,3514.5,3514.4,12.03297857]
[1736264076822,11.9025206,3514.5,3514.4,6.82070183]
[1736264077025,11.9025206,3514.5,3514.4,4.91864183]
[1736264077226,0.28469,3513.7,3513.6,3.2078]
[1736264077420,3.4100906,3513.7,3513.2,3.2078]
[1736264077630,3.6948206,3513.3,3513.2,3.2078]
[1736264078235,25.19923768,3513.3,3512.8,5.6848]
[1736264078429,21.78914708,3513.3,3513.2,5.6848]
[1736264078629,7.72594708,3513.3,3513.2,7.9688]
[1736264078829,10.39056982,3513.5,3513.2,8.55408105]
[1736264079134,5.87049164,3513.8,3513.4,3.2078]
[1736264079326,6.19077848,3513.5,3513.1,1.44533364]
[1736264079525,7.2225749,3514.0,3513.5,2.271]
[1736264079742,3.0331749,3514.0,3513.9,3.49248]
[1736264079931,2.3126749,3514.2,3514.1,0.28466]
[1736264080125,2.3126749,3514.2,3513.9,3.2078]
[1736264080126,10.31796414,3515.3,3514.4,3.2078]
[1736264080331,10.31796414,3515.3,3515.2,44.0078]
[1736264080633,10.31796414,3515.3,3515.2,49.00177611]
[1736264080634,2.03769935,3515.3,3515.2,49.00177611]
[1736264080838,8.25087897,3517.0,3515.2,48.71721611]
[1736264081133,2.3126749,3517.0,3516.3,3.2078]
[1736264081433,2.3126749,3516.1,3515.2,40.8]
[1736264081640,2.3126749,3515.7,3515.3,2.271]
[1736264081930,0.28456,3515.3,3515.2,40.8]
[1736264082130,2.5972349,3515.3,3515.2,40.8]
[1736264082832,0.28454,3515.6,3515.2,40.8]
[1736264083038,2.3126749,3515.4,3515.2,40.8]
[1736264083431,0.28452,3515.9,3515.2,40.8]
[1736264083632,2.3126749,3515.6,3515.2,40.8]
[1736264083833,2.3126749,3515.7,3515.2,40.8]
[1736264084034,2.3126749,3515.8,3515.2,40.8]
[1736264084233,2.3126749,3515.5,3515.2,40.8]
[1736264084435,0.28456,3515.3,3515.2,40.8]
[1736264084638,2.3126749,3515.3,3513.5,3.2078]
[1736264084839,2.3126749,3514.3,3513.8,0.28468]
[1736264085141,2.3126749,3514.3,3514.2,40.8]
[1736264085539,3.2078,3515.0,3514.2,41.08464]
[1736264085739,2.3126749,3514.3,3514.2,40.8]
[1736264085931,2.5973149,3514.3,3514.2,40.8]
[1736264086138,2.3126749,3514.3,3514.2,40.8]
[1736264086538,7.3126749,3514.3,3512.6,3.2078]
[1736264086731,2.3126749,3512.6,3511.5,3.2078]
[1736264086936,3.2078,3513.5,3511.9,3.2078]
[1736264087130,2.3126749,3513.3,3512.7,3.2078]
[1736264087335,3.6947806,3513.8,3513.0,0.28475]
[1736264087540,3.08007979,3514.1,3513.3,40.8]
[1736264087743,3.08007979,3514.1,3513.3,41.08472]
[1736264087744,2.3126749,3513.7,3513.3,41.08472]
[1736264088038,2.3126749,3513.7,3513.3,40.8]
[1736264088234,2.3126749,3513.7,3513.3,41.08472]
[1736264088437,0.28465,3514.2,3513.3,40.8]
[1736264088636,2.3126749,3513.9,3513.3,40.8]
[1736264088941,2.3126749,3513.4,3511.7,2.7034]
[1736264089132,2.3126749,3511.8,3510.2,3.2078]
[1736264089337,2.3126749,3512.2,3511.0,3.2078]
[1736264089541,0.1014,3511.7,3511.6,3.2078]
[1736264089841,4.8271,3514.4,3512.2,0.28481]
[1736264089842,3.4100906,3513.4,3512.2,0.28481]
[1736264090038,2.3126749,3512.4,3511.6,3.2078]
[1736264090242,2.3126749,3511.9,3511.0,0.28491]
[1736264090544,2.3126749,3511.9,3510.9,3.2078]
[1736264090545,0.28473,3513.2,3512.5,0.28478]
[1736264090838,3.36477979,3513.7,3512.7,0.28477]
[1736264091041,2.3126749,3513.6,3512.6,5.4808]
[1736264091339,3.36472979,3514.3,3513.0,3.2078]
[1736264091541,2.3126749,3514.1,3513.0,3.2078]
[1736264091843,2.3126749,3514.1,3512.7,6.1423906]
[1736264091844,2.5973249,3514.2,3513.6,3.2078]
[1736264092035,2.3126749,3514.2,3513.2,3.2078]
[1736264092234,2.3126749,3514.2,3513.7,0.28469]
[1736264092434,3.08007979,3514.3,3513.3,3.2078]
[1736264092637,2.3126749,3514.1,3513.4,3.49251]
[1736264092939,2.3126749,3514.1,3513.5,0.2847]
[1736264093139,2.3126749,3514.1,3513.4,0.28471]
[1736264093337,2.3126749,3514.1,3513.3,3.2078]
[1736264093639,5.7888,3515.5,3514.0,3.2078]
[1736264093844,2.3126749,3514.6,3514.5,0.28463]
[1736264094043,2.3126749,3514.6,3513.9,2.273]
[1736264094044,2.3126749,3514.8,3514.1,3.2078]
[1736264094439,2.3126749,3514.8,3514.7,40.8]
[1736264095142,2.3126749,3514.8,3514.7,44.0078]
[1736264095336,2.3126749,3514.8,3514.7,40.8]
[1736264095544,2.5972749,3514.8,3514.7,40.8]
[1736264095736,2.3126749,3514.8,3514.7,40.8]
[1736264095938,2.5972749,3514.8,3514.7,40.8]
[1736264096543,5.2846,3514.8,3514.7,40.8]
[1736264096739,5.0,3514.8,3513.0,11.7458]
[1736264097041,6.6178906,3515.1,3513.6,3.2078]
[1736264097042,3.2078,3514.6,3513.6,3.2078]
[1736264097345,3.2078,3515.1,3513.6,3.2078]
[1736264097647,0.28458,3515.0,3514.5,41.08462]
[1736264097844,0.28458,3515.1,3514.5,41.08462]
[1736264098143,5.7888,3515.5,3514.5,40.8]
[1736264098343,0.28462,3514.6,3514.5,40.8]
[1736264098740,3.2078,3515.1,3514.5,40.8]
[1736264099441,0.28462,3514.6,3514.5,40.8]
[1736264099747,3.2078,3514.7,3513.4,3.2078]
[1736264100045,0.2846,3514.8,3514.3,3.2078]
[1736264100245,3.2078,3514.7,3514.4,40.8]
[1736264100448,0.28462,3514.5,3514.4,40.8]
[1736264100947,3.2078,3514.7,3513.5,3.2078]
[1736264101147,0.28458,3515.1,3514.5,0.28462]
[1736264101348,3.2078,3515.2,3514.6,40.8]
[1736264101552,0.2846,3514.9,3514.6,40.8]
[1736264101739,0.28458,3515.1,3514.5,3.2078]
[1736264102043,3.2078,3515.2,3513.4,3.2078]
[1736264102252,3.2078,3515.2,3512.7,6.1423906]
[1736264102253,3.2078,3515.2,3514.6,3.2078]
[1736264102448,3.49237,3515.2,3514.7,0.2846]
[1736264102748,0.28458,3515.1,3514.8,40.8]
[1736264103041,0.28456,3515.4,3514.9,0.28459]
[1736264103242,6.20048,3516.4,3515.3,3.2078]
[1736264103243,3.2078,3516.3,3515.3,3.2078]
[1736264103435,3.2078,3516.3,3515.5,3.2078]
[1736264103641,0.28446,3516.6,3515.7,3.2078]
[1736264103840,3.2078,3516.8,3514.9,3.4926]
[1736264104041,3.2078,3516.2,3515.1,3.2078]
[1736264104245,3.2078,3516.2,3515.2,3.2078]
[1736264104448,3.2078,3516.2,3515.1,3.2078]
[1736264104643,3.2078,3516.2,3514.8,39.53202931]
[1736264104847,3.2078,3516.7,3515.2,3.2078]
[1736264105053,0.28447,3516.4,3515.8,0.28451]
[1736264105242,3.2078,3515.9,3514.8,39.53202931]
[1736264105643,3.2078,3515.9,3515.7,0.28452]
[1736264105944,3.2078,3515.9,3515.6,0.28453]
[1736264106141,3.2078,3515.9,3515.5,0.28454]
[1736264106344,3.2078,3516.7,3515.8,41.08452]
[1736264106540,3.2078,3516.7,3515.8,40.8]
[1736264106743,3.2078,3517.1,3515.8,40.8]
[1736264106947,3.2078,3516.6,3515.8,40.8]
[1736264107855,0.28448,3516.4,3515.8,44.0078]
[1736264108053,3.2078,3516.5,3515.8,40.8]
[1736264108552,3.2078,3516.3,3515.8,40.8]
[1736264109144,0.0679,3516.4,3515.8,40.8]
[1736264109350,0.0679,3516.4,3515.8,35.81890672]
[1736264109650,3.2078,3516.3,3515.5,3.2078]
[1736264109844,3.2078,3516.3,3515.0,3.4100906]
[1736264110047,3.2078,3516.3,3515.9,0.28451]
[1736264110048,3.49228,3516.3,3515.9,0.28451]
[1736264110243,3.2078,3516.3,3516.0,41.0845]
[1736264110441,3.2078,3516.3,3516.0,40.8]
[1736264110442,0.28449,3516.2,3516.0,40.8]
[1736264110646,0.28449,3516.1,3516.0,40.8]
[1736264110847,3.2078,3516.3,3514.4,3.2078]
[1736264110848,0.71128,3516.0,3514.4,3.2078]
[1736264111056,3.2078,3514.9,3514.1,2.8476]
[1736264111254,3.2078,3514.9,3514.5,40.8]
[1736264111554,3.2078,3515.0,3514.5,40.8]
[1736264111744,3.49238,3515.0,3514.5,40.8]
[1736264111951,0.2846,3514.9,3514.5,41.08462]
[1736264112144,0.2846,3514.9,3514.5,40.8]
[1736264112341,3.2078,3515.0,3514.5,40.8]
[1736264112751,3.2078,3515.0,3514.5,41.08462]
[1736264112950,3.2078,3515.0,3514.5,40.8]
[1736264113149,3.49242,3514.6,3514.5,40.8]
[1736264113349,3.2078,3514.6,3512.8,5.7465]
[1736264113552,3.2078,3513.5,3512.8,2.5387]
[1736264113749,0.28474,3513.1,3512.8,2.5387]
[1736264114052,0.28474,3513.1,3513.0,40.8]
[1736264114253,3.49254,3513.1,3513.0,40.8]
[1736264114651,3.2078,3513.1,3513.0,40.8]
[1736264114845,3.2078,3514.1,3513.0,45.8]
[1736264115054,3.2078,3514.1,3513.0,40.8]
[1736264116153,3.2078,3513.8,3513.0,40.8]
[1736264116350,3.2078,3513.8,3513.2,0.28473]
[1736264116351,0.28469,3513.7,3513.2,0.28473]
[1736264116655,3.49243,3514.4,3513.1,4.4066606]
[1736264116852,3.2078,3514.4,3513.1,3.4100906]
[1736264117046,0.28465,3514.2,3513.1,3.4100906]
[1736264117262,3.2078,3514.5,3513.2,0.71183]
[1736264117553,2.6389,3514.8,3513.0,44.0078]
[1736264117750,3.2078,3514.2,3513.0,40.8]
[1736264118253,3.2078,3514.2,3513.0,44.0078]
[1736264118555,3.2078,3514.6,3513.5,3.2078]
[1736264118760,3.2078,3514.6,3513.0,40.8]
[1736264118945,3.2078,3514.6,3512.9,4.9602]
[1736264119259,0.28468,3513.9,3513.5,0.2847]
[1736264119551,3.2078,3514.2,3512.9,4.9602]
[1736264119552,3.2078,3514.2,3513.8,40.8]
[1736264119857,0.28467,3513.9,3513.8,40.8]
[1736264122457,3.08007979,3514.0,3512.4,0.71198]
[1736264122653,3.2078,3513.1,3512.3,5.4748]
[1736264122956,3.2078,3513.1,3511.9,2.6966]
[1736264123154,0.28477,3512.8,3512.4,0.28479]
[1736264123357,0.28477,3512.8,3512.3,0.28479]
[1736264123561,0.28477,3512.8,3512.7,40.8]
[1736264124052,0.28485,3511.8,3511.4,0.28487]
[1736264124251,0.71193,3512.7,3511.4,0.28487]
[1736264124252,3.2078,3512.0,3511.4,0.28487]
[1736264124454,3.2078,3511.6,3510.8,3.2078]
[1736264124654,3.2078,3512.2,3510.8,3.4926]
[1736264124855,3.2078,3512.2,3510.8,4.20488]
[1736264125159,3.2078,3512.2,3511.5,40.8]
[1736264125455,3.49265,3511.6,3511.2,0.28487]
[1736264125656,3.49265,3511.6,3510.0,8.5857]
[1736264125657,3.4100906,3511.3,3509.3,3.2078]
[1736264125861,2.268,3512.2,3510.6,40.8]
[1736264125862,3.2078,3510.8,3510.6,40.8]
[1736264126067,3.2078,3510.8,3510.7,0.28492]
[1736264126248,3.2078,3511.5,3509.9,3.2078]
[1736264126449,4.1220706,3512.3,3510.7,3.2078]
[1736264126664,0.28483,3511.9,3510.8,0.28491]
[1736264126957,3.2078,3512.1,3510.7,5.4758]
[1736264127156,0.28485,3511.6,3511.2,0.28487]
[1736264127350,3.2078,3512.1,3510.8,3.2078]
[1736264127662,3.2078,3512.1,3511.7,40.8]
[1736264127957,0.28483,3511.8,3511.7,40.8]
[1736264128356,5.28483,3511.8,3511.7,40.8]
[1736264128556,0.28492,3510.7,3510.4,3.49274]
[1736264128755,3.4100906,3511.3,3510.0,2.7657]
[1736264128954,3.2078,3511.4,3510.2,3.2078]
[1736264129261,0.28491,3510.9,3510.2,0.28495]
[1736264129561,0.28491,3510.9,3509.3,6.17014404]
[1736264129562,3.2078,3511.5,3510.3,44.0078]
[1736264129761,0.2849,3511.0,3510.3,44.0078]
[1736264130059,3.2078,3511.1,3510.3,40.8]
[1736264130252,0.28492,3510.7,3510.3,40.8]
[1736264130558,0.28491,3510.8,3510.3,40.8]
[1736264130854,3.2078,3510.9,3510.3,40.8]
[1736264131056,0.35012,3510.8,3510.3,40.8]
[1736264131254,0.0652,3510.8,3510.3,40.8]
[1736264131457,0.28501,3509.6,3509.4,3.2078]
[1736264131655,3.2078,3510.2,3508.3,0.14379086]
[1736264131864,3.2078,3510.2,3508.1,5.9651906]
[1736264131865,3.49281,3509.6,3508.9,0.28506]
[1736264132054,3.2078,3509.6,3509.2,0.28504]
[1736264132253,3.2078,3509.6,3509.0,40.8]
[1736264132457,0.28505,3509.1,3509.0,40.8]
[1736264132856,0.28505,3509.1,3507.6,3.2078]
[1736264133051,3.2078,3508.8,3507.5,5.4028]
[1736264133251,3.2078,3508.8,3507.2,4.949]
[1736264133463,3.2078,3508.8,3508.3,40.8]
[1736264134155,3.2078,3509.9,3508.3,40.8]
[1736264134357,0.28503,3509.4,3508.7,0.28508]
[1736264134561,0.285,3509.7,3509.1,0.28505]
[1736264134757,0.28499,3509.8,3509.2,0.28504]
[1736264134959,3.2078,3509.9,3508.6,2.269]
[1736264135161,3.49275,3510.4,3509.7,0.285]
[1736264135357,3.49275,3510.4,3508.9,3.2078]
[1736264135358,3.2078,3510.4,3509.6,3.2078]
[1736264135562,3.2078,3511.0,3510.1,3.2078]
[1736264135858,3.2078,3510.6,3509.3,2.7798]
[1736264136058,3.2078,3511.0,3510.1,3.2078]
[1736264136259,3.2078,3511.0,3509.4,0.71256]
[1736264136260,3.2078,3511.4,3510.6,3.2078]
[1736264136456,0.2278,3510.7,3510.6,0.28493]
[1736264136659,0.2278,3510.7,3510.6,5.28493]
[1736264136859,3.2078,3512.8,3511.0,0.28489]
[1736264137062,3.10337701,3513.1,3512.3,3.2078]
[1736264137256,5.17229501,3513.7,3512.5,3.2078]
[1736264137257,3.2078,3513.7,3512.5,3.2078]
[1736264137557,0.28474,3512.9,3512.8,40.8]
[1736264137957,5.1067,3512.9,3511.5,3.2078]
[1736264138167,0.2848,3512.2,3511.5,3.2078]
[1736264138359,3.2078,3512.7,3511.9,3.2078]
[1736264138564,0.28476,3512.6,3511.8,0.28482]
[1736264138867,3.2078,3512.7,3512.0,40.8]
[1736264139056,3.2078,3512.3,3512.0,40.8]
[1736264139261,0.2848,3512.1,3512.0,40.8]
[1736264139570,0.2848,3512.1,3510.4,0.71236]
[1736264139571,3.4100906,3512.1,3510.3,3.2078]
[1736264139864,0.28484,3511.7,3510.5,0.28493]
[1736264140166,5.4016,3512.5,3509.9,3.2078]
[1736264140167,3.2078,3510.9,3509.9,3.2078]
[1736264140464,0.28491,3510.8,3510.4,3.2078]
[1736264140668,3.2078,3511.3,3510.5,40.8]
[1736264140857,0.28489,3511.1,3510.5,41.08493]
[1736264141056,3.2078,3511.3,3510.5,40.8]
[1736264141270,3.2078,3511.3,3510.7,0.28491]
[1736264141774,3.2078,3511.3,3510.5,40.8]
[1736264141775,3.2078,3511.8,3510.8,0.2849]
[1736264141968,3.49268,3511.3,3510.6,0.28493]
[1736264142168,0.28489,3511.1,3510.5,40.8]
[1736264142360,3.2078,3511.2,3510.5,40.8]
[1736264142665,3.2078,3511.4,3510.5,40.8]
[1736264142867,3.2078,3511.4,3510.8,0.28491]
[1736264143270,3.2078,3511.4,3510.5,40.8]
[1736264143462,3.4100906,3512.1,3510.6,0.28492]
[1736264143463,0.28487,3511.3,3510.6,0.28492]
[1736264143662,0.2849,3511.0,3510.5,40.8]
[1736264144064,0.28489,3511.1,3510.5,41.08493]
[1736264144262,6.11355,3512.5,3510.5,41.08493]
[1736264144263,3.49262,3511.9,3511.3,0.28487]
[1736264144467,3.2078,3511.9,3510.6,2.5729]
[1736264145170,0.28483,3511.8,3510.9,3.2078]
[1736264145372,0.28481,3512.1,3511.4,3.2078]
[1736264145565,3.2078,3512.4,3511.1,3.2078]
[1736264145764,3.2078,3512.0,3510.6,5.2699]
[1736264146069,3.2078,3511.6,3510.6,2.5729]
[1736264146467,3.4100906,3512.1,3510.6,2.5729]
[1736264146767,3.2078,3512.3,3510.6,3.42913314]
[1736264146972,3.2078,3512.3,3510.7,3.92009]
[1736264147270,0.28489,3511.1,3510.7,0.28491]
[1736264147467,3.2078,3511.1,3510.8,40.8]
[1736264147662,3.2078,3511.1,3509.1,3.2078]
[1736264147663,0.71243,3510.1,3509.1,3.2078]
[1736264147863,0.285,3509.7,3509.2,0.28504]
[1736264148064,0.28501,3509.7,3509.3,41.08503]
[1736264148259,3.2078,3510.2,3509.3,41.08503]
[1736264148466,3.2078,3510.2,3509.3,40.8]
[1736264148667,3.2078,3509.8,3509.3,40.8]
[1736264148974,3.49282,3509.4,3509.3,40.8]
[1736264150969,0.28506,3509.1,3508.7,0.28508]
[1736264151171,3.2078,3509.4,3509.0,0.28505]
[1736264151385,3.2078,3509.9,3508.7,3.2078]
[1736264151872,3.4100906,3510.2,3508.8,0.71268]
[1736264152066,0.28498,3510.0,3509.8,40.8]
[1736264152271,3.4100906,3510.2,3509.8,40.8]
[1736264152478,6.6178906,3510.8,3509.8,44.0078]
[1736264152679,0.28495,3510.3,3510.0,0.28497]
[1736264152973,6.6178906,3510.8,3509.9,0.28498]
[1736264153179,6.6178906,3510.8,3509.8,40.8]
[1736264153373,0.71229,3510.7,3509.8,40.8]
[1736264153575,3.2078,3510.4,3510.0,0.28497]
[1736264153875,3.4100906,3510.8,3509.8,40.8]
[1736264154084,3.4100906,3510.8,3509.9,0.28498]
[1736264154379,0.28489,3511.1,3510.8,0.2849]
[1736264154674,0.28492,3510.7,3510.3,0.28494]
[1736264154876,3.2078,3510.9,3510.3,0.28494]
[1736264155080,3.2078,3510.9,3509.9,3.2078]
[1736264155281,0.9972,3510.7,3509.8,40.8]
[1736264155473,0.28498,3510.0,3509.8,40.8]
[1736264155675,0.28498,3509.9,3509.8,40.8]
[1736264156174,3.49278,3509.9,3509.8,40.8]
[1736264156369,8.2078,3509.9,3508.1,5.2257]
[1736264156675,3.2078,3509.2,3508.0,3.2078]
[1736264156870,3.2078,3509.7,3508.5,3.2078]
[1736264157074,3.2078,3510.1,3509.2,3.2078]
[1736264157273,3.2078,3509.7,3509.3,40.8]
[1736264157478,0.28502,3509.4,3509.3,40.8]
[1736264158282,3.60002,3509.4,3509.3,40.8]
[1736264158579,7.0101106,3509.4,3509.3,40.8]
[1736264158972,12.0101106,3509.4,3509.3,40.8]
[1736264159380,7.0101106,3509.4,3509.3,40.8]
[1736264159779,0.39222,3509.4,3509.3,40.8]
[1736264160176,0.1072,3509.4,3508.8,3.2078]
[1736264160383,3.315,3509.4,3508.3,3.2078]
[1736264160582,0.28504,3509.2,3508.8,0.28506]
[1736264160789,0.28504,3509.2,3508.8,0.28507]
[1736264160978,0.28504,3509.2,3508.9,0.28506]
[1736264161176,0.1072,3509.4,3509.3,0.28503]
[1736264161386,0.39222,3509.4,3509.2,0.28503]
[1736264161685,0.39222,3509.4,3508.1,3.48921]
[1736264161686,3.92038,3509.3,3508.1,2.7764]
[1736264161883,3.92038,3509.3,3508.0,3.2078]
[1736264162080,3.92038,3509.3,3508.4,3.2078]
[1736264162081,3.2078,3509.3,3508.4,3.2078]
[1736264162287,0.28507,3508.8,3508.7,40.8]
[1736264162692,5.71268,3508.8,3507.5,3.2078]
[1736264162983,0.28506,3508.9,3508.0,3.2078]
[1736264163185,0.28506,3508.9,3508.7,0.28507]
[1736264163389,0.28507,3508.8,3508.6,0.28508]
[1736264163592,3.2078,3509.0,3508.1,40.8]
[1736264163891,3.2078,3509.1,3508.1,40.8]
[1736264164086,0.28486,3511.4,3509.5,3.2078]
[1736264164286,0.28483,3511.8,3511.3,3.2078]
[1736264164585,0.28488,3511.1,3510.7,3.2078]
[1736264164792,3.2078,3511.4,3510.1,3.2078]
[1736264165087,3.91983,3512.0,3510.7,3.2078]
[1736264165278,3.2078,3511.6,3510.4,3.2078]
[1736264165485,0.28495,3510.3,3509.7,0.285]
[1736264165690,3.2078,3511.2,3511.1,0.28488]
[1736264165886,0.28485,3511.6,3511.1,3.4100906]
[1736264166089,0.71191,3512.6,3510.5,2.264]
[1736264166090,3.2078,3512.0,3510.5,3.2078]
[1736264166391,0.28479,3512.3,3511.1,0.28488]
[1736264166585,0.28481,3512.0,3511.4,3.2078]
[1736264166792,2.6646,3512.4,3511.4,3.2078]
[1736264166982,2.6646,3512.4,3511.3,3.2078]
[1736264167191,0.28483,3511.8,3511.2,0.28487]
[1736264167390,2.6646,3512.4,3511.3,3.2078]
[1736264167589,0.28483,3511.9,3511.3,3.49267]
[1736264167787,2.94938,3512.4,3511.9,0.28482]
[1736264167988,6.6178906,3514.6,3512.1,3.2078]
[1736264168188,5.3031,3514.1,3513.0,3.2078]
[1736264168389,5.3031,3514.1,3512.2,0.71198]
[1736264168390,3.2078,3514.6,3513.9,3.2078]
[1736264168588,3.2078,3514.6,3513.0,3.2078]
[1736264168791,0.28469,3513.5,3512.9,0.28474]
[1736264169091,3.2078,3514.5,3513.1,3.2078]
[1736264169690,3.2078,3514.5,3513.2,0.28471]
[1736264169691,0.28466,3513.9,3513.2,0.28471]
[1736264169886,3.2078,3514.0,3513.1,3.2078]
[1736264170089,3.2078,3514.6,3513.3,3.2078]
[1736264170292,2.6646,3514.9,3514.4,3.2078]
[1736264170490,2.6646,3514.9,3513.6,3.2078]
[1736264171197,2.6646,3514.9,3513.0,2.256]
[1736264171198,3.2078,3515.9,3514.6,3.2078]
[1736264171491,3.2078,3515.5,3514.0,3.2078]
[1736264171692,0.28464,3514.1,3514.0,3.2078]
[1736264171886,0.28464,3514.1,3512.9,3.4100906]
[1736264171887,3.2078,3515.1,3513.9,3.2078]
[1736264172092,3.2078,3515.3,3513.9,3.2078]
[1736264172292,2.5983,3515.5,3515.1,3.2078]
[1736264172493,2.6103,3516.1,3515.1,3.2078]
[1736264172693,2.6103,3516.1,3514.7,3.2078]
[1736264172890,2.6103,3516.1,3515.3,3.2078]
[1736264173094,3.2078,3516.9,3515.8,3.2078]
[1736264173294,2.7162,3517.0,3516.0,3.2078]
[1736264173497,2.7162,3517.0,3515.5,3.4100906]
[1736264173498,3.2078,3516.9,3515.5,3.4100906]
[1736264173690,0.28453,3515.5,3515.4,3.2078]
[1736264173889,3.2078,3516.1,3514.9,3.2078]
[1736264174099,0.28452,3515.6,3515.3,3.2078]
[1736264174394,3.2078,3516.6,3515.3,3.2078]
[1736264174600,5.924,3517.0,3515.7,3.2078]
[1736264174799,2.7162,3517.0,3515.7,3.2078]
[1736264174996,0.28448,3516.1,3515.7,3.2078]
[1736264175195,2.7162,3517.0,3515.7,3.2078]
[1736264175396,3.2078,3517.4,3516.1,3.2078]
[1736264175594,3.2078,3517.0,3515.9,3.2078]
[1736264175799,3.2078,3516.7,3515.7,3.2078]
[1736264176100,0.28448,3516.1,3515.6,3.2078]
[1736264176299,3.2078,3516.9,3515.6,3.2078]
[1736264176690,0.28449,3516.0,3515.6,3.2078]
[1736264176893,3.2078,3516.9,3515.6,3.2078]
[1736264177094,0.28448,3516.1,3515.6,3.2078]
[1736264177291,0.28451,3515.7,3515.6,3.2078]
[1736264177499,3.2078,3515.7,3513.9,3.2078]
[1736264177794,0.28464,3514.1,3513.5,5.4628]
[1736264177995,0.7114,3515.2,3513.0,3.4100906]
[1736264177996,3.2078,3513.7,3513.0,3.4100906]
[1736264178298,2.7883,3516.1,3512.8,6.61340702]
[1736264178299,3.2078,3513.6,3512.8,6.61340702]
[1736264178499,3.2078,3513.2,3512.5,8.81787603]
[1736264178696,3.2078,3513.2,3512.1,2.65199412]
[1736264179095,3.2078,3513.2,3512.2,3.4926]
[1736264179291,6.23663,3514.5,3512.0,3.4100906]
[1736264179292,3.2078,3512.7,3512.0,3.4100906]
[1736264179497,0.28478,3512.4,3511.9,0.28481]
[1736264179799,3.2078,3512.7,3511.5,1.7872]
[1736264180103,3.2078,3512.0,3511.0,41.0848]
[1736264180304,3.2078,3512.0,3511.0,40.8]
[1736264180696,0.28485,3511.5,3511.0,41.08488]
[1736264180897,3.2078,3512.0,3511.0,40.8]
[1736264181205,3.2078,3511.1,3509.7,6.61340702]
[1736264181394,0.28499,3509.8,3509.7,6.61340702]
[1736264182099,0.28499,3509.8,3509.7,40.8]
[1736264182400,5.0,3509.8,3508.3,6.61340702]
[1736264182600,6.6178906,3509.9,3508.3,6.61340702]
[1736264182601,3.2078,3508.8,3508.3,6.61340702]
[1736264182898,3.2078,3509.7,3508.4,3.2078]
[1736264183098,3.2078,3510.2,3508.8,3.2078]
[1736264183404,3.2078,3510.2,3509.6,40.8]
[1736264183700,0.285,3509.7,3509.6,40.8]
[1736264185109,3.2078,3509.8,3509.6,40.8]
[1736264185401,3.2078,3510.3,3509.6,40.8]
[1736264186095,3.49275,3510.3,3509.6,40.8]
[1736264186408,3.2078,3510.3,3510.2,0.28495]
[1736264186602,3.2078,3511.4,3510.2,3.4100906]
[1736264187105,3.2078,3511.0,3510.5,0.28493]
[1736264187306,3.2078,3511.0,3510.2,3.4100906]
[1736264187510,3.2078,3511.0,3510.9,40.8]
[1736264187700,3.2078,3511.0,3510.9,41.0849]
[1736264188202,3.2078,3512.3,3511.7,0.28483]
[1736264188403,3.2078,3512.2,3511.8,3.4100906]
[1736264188605,3.2078,3512.2,3511.4,2.756]
[1736264189011,3.2078,3513.2,3511.8,3.4100906]
[1736264189209,3.2078,3513.2,3512.9,0.28473]
[1736264189415,3.2078,3513.2,3512.4,3.4100906]
[1736264189598,3.2078,3514.3,3512.9,3.4100906]
[1736264189904,3.2078,3514.3,3513.5,3.4100906]
[1736264190108,3.2078,3514.5,3514.2,0.28462]
[1736264190300,0.28462,3514.4,3513.7,0.28467]
[1736264190507,3.49241,3514.5,3513.9,0.28465]
[1736264190705,3.2078,3514.5,3514.3,40.8]
[1736264190907,0.28461,3514.4,3514.3,40.8]
[1736264191302,5.28461,3514.4,3514.3,40.8]
[1736264191505,5.0,3514.4,3512.8,8.545]
[1736264191811,0.28469,3513.5,3512.8,8.545]
[1736264192005,3.2078,3513.3,3512.8,8.545]